[Event "Titled Tuesday Blitz May 16 Late 2023"]
[White "Kuznetsov, Felix"]
[Black "Roberson, Peter T"]
[WhiteFideId "34147990"]
[BlackFideId "412384"]
[WhiteElo "2281"]
[BlackElo "2346"]
[Result "1-0"]
[Round "06"]
[TimeControl "180+2"]
[Date "2023.05.16"]
[WhiteClock "0:00:17"]
[BlackClock "0:00:00"]

1. e4 {[%clk 0:03:00]}  e5 {[%clk 0:02:55]} 2. Nc3 {[%clk 0:02:59]}  Nf6 {[%clk 0:02:52]} 3. f4 {[%clk 0:03:00]}  d5 {[%clk 0:02:52]} 4. fxe5 {[%clk 0:03:00]}  Nxe4 {[%clk 0:02:52]} 5. Qf3 {[%clk 0:03:00]}  Nxc3 {[%clk 0:02:46]} 6. bxc3 {[%clk 0:03:00]}  Be7 {[%clk 0:02:46]} 7. d4 {[%clk 0:02:58]}  O-O {[%clk 0:02:40]} 8. Bd3 {[%clk 0:02:58]}  c5 {[%clk 0:02:34]} 9. Ne2 {[%clk 0:02:57]}  f6 {[%clk 0:02:26]} 10. Qh5 {[%clk 0:02:48]}  f5 {[%clk 0:02:18]} 11. Nf4 {[%clk 0:02:43]}  Nc6 {[%clk 0:02:13]} 12. Be3 {[%clk 0:02:12]}  Qa5 {[%clk 0:01:49]} 13. O-O {[%clk 0:02:07]}  Qxc3 {[%clk 0:01:48]} 14. Nxd5 {[%clk 0:02:07]}  Qa5 {[%clk 0:01:44]} 15. Nxe7+ {[%clk 0:02:01]}  Nxe7 {[%clk 0:01:45]} 16. Bc4+ {[%clk 0:02:01]}  Kh8 {[%clk 0:01:44]} 17. Rf3 {[%clk 0:02:01]}  f4 {[%clk 0:01:35]} 18. Raf1 {[%clk 0:01:47]}  cxd4 {[%clk 0:01:29]} 19. Rxf4 {[%clk 0:01:40]}  Bf5 {[%clk 0:01:26]} 20. Bxd4 {[%clk 0:01:34]}  Qd2 {[%clk 0:01:00]} 21. c3 {[%clk 0:00:59]}  g6 {[%clk 0:00:36]} 22. Qh6 {[%clk 0:00:47]}  Nc6 {[%clk 0:00:33]} 23. g4 {[%clk 0:00:35]}  Nxd4 {[%clk 0:00:29]} 24. cxd4 {[%clk 0:00:34]}  Qe3+ {[%clk 0:00:20]} 25. R1f2 {[%clk 0:00:34]}  Qc1+ {[%clk 0:00:17]} 26. Bf1 {[%clk 0:00:34]}  Rad8 {[%clk 0:00:02]} 27. gxf5 {[%clk 0:00:33]}  Rxf5 {[%clk 0:00:03]} 28. e6 {[%clk 0:00:20]}  Rxd4 {[%clk 0:00:02]} 29. Rxf5 {[%clk 0:00:15]}  Qxh6 {[%clk 0:00:01]} 30. Rf8+ {[%clk 0:00:15]}  Qxf8 {[%clk 0:00:02]} 31. Rxf8+ {[%clk 0:00:16]}  Kg7 {[%clk 0:00:02]} 32. e7 {[%clk 0:00:16]}  Rg4+ {[%clk 0:00:02]} 33. Bg2 {[%clk 0:00:16]}  Re4 {[%clk 0:00:00]} 34. e8=Q {[%clk 0:00:17]} 1-0


[Site "https://www.chess.com"]

[Event "Titled Tuesday Blitz May 16 Late 2023"]
[White "AyMitecK"]
[Black "Wagner, Dennis"]
[BlackFideId "24650684"]
[WhiteElo "2556"]
[BlackElo "2478"]
[Result "1-0"]
[Round "06"]
[TimeControl "180+2"]
[Date "2023.05.16"]
[WhiteClock "0:00:19"]
[BlackClock "0:00:01"]

1. e4 {[%clk 0:03:00]}  e5 {[%clk 0:02:59]} 2. Nf3 {[%clk 0:03:00]}  Nc6 {[%clk 0:02:59]} 3. Bc4 {[%clk 0:03:01]}  Bc5 {[%clk 0:02:58]} 4. O-O {[%clk 0:03:00]}  Nf6 {[%clk 0:02:59]} 5. d3 {[%clk 0:03:00]}  d6 {[%clk 0:02:59]} 6. c3 {[%clk 0:03:00]}  h6 {[%clk 0:02:57]} 7. Nbd2 {[%clk 0:02:58]}  O-O {[%clk 0:02:55]} 8. h3 {[%clk 0:02:54]}  Bb6 {[%clk 0:02:53]} 9. Bb3 {[%clk 0:02:50]}  a5 {[%clk 0:02:52]} 10. a4 {[%clk 0:02:48]}  Ne7 {[%clk 0:02:45]} 11. Re1 {[%clk 0:02:47]}  c6 {[%clk 0:02:43]} 12. Nf1 {[%clk 0:02:46]}  Ng6 {[%clk 0:02:42]} 13. d4 {[%clk 0:02:46]}  d5 {[%clk 0:02:09]} 14. exd5 {[%clk 0:02:35]}  e4 {[%clk 0:02:06]} 15. Ne5 {[%clk 0:02:34]}  cxd5 {[%clk 0:01:59]} 16. Ne3 {[%clk 0:02:15]}  Be6 {[%clk 0:01:58]} 17. Nxg6 {[%clk 0:01:56]}  fxg6 {[%clk 0:01:58]} 18. f3 {[%clk 0:01:57]}  Kh7 {[%clk 0:01:54]} 19. fxe4 {[%clk 0:01:49]}  Nxe4 {[%clk 0:01:54]} 20. Bc2 {[%clk 0:01:49]}  Qh4 {[%clk 0:01:48]} 21. Bxe4 {[%clk 0:01:45]}  dxe4 {[%clk 0:01:39]} 22. Re2 {[%clk 0:01:26]}  Bc7 {[%clk 0:01:33]} 23. Nf1 {[%clk 0:01:19]}  Bc4 {[%clk 0:01:25]} 24. Be3 {[%clk 0:01:10]}  Rxf1+ {[%clk 0:01:02]} 25. Qxf1 {[%clk 0:01:06]}  Qg3 {[%clk 0:01:03]} 26. Qf2 {[%clk 0:00:17]}  Qh2+ {[%clk 0:01:01]} 27. Kf1 {[%clk 0:00:18]}  Qh1+ {[%clk 0:00:44]} 28. Qg1 {[%clk 0:00:18]}  Rf8+ {[%clk 0:00:44]} 29. Ke1 {[%clk 0:00:18]}  Qxg1+ {[%clk 0:00:11]} 30. Bxg1 {[%clk 0:00:19]}  Bg3+ {[%clk 0:00:07]} 31. Kd2 {[%clk 0:00:19]}  Bxe2 {[%clk 0:00:05]} 32. Kxe2 {[%clk 0:00:20]}  g5 {[%clk 0:00:06]} 33. Rd1 {[%clk 0:00:18]}  Kg6 {[%clk 0:00:05]} 34. d5 {[%clk 0:00:18]}  Re8 {[%clk 0:00:05]} 35. d6 {[%clk 0:00:18]}  Rd8 {[%clk 0:00:05]} 36. d7 {[%clk 0:00:18]}  Kf7 {[%clk 0:00:06]} 37. Bb6 {[%clk 0:00:19]}  Ke7 {[%clk 0:00:01]} 38. Bxd8+ {[%clk 0:00:19]} 1-0


[Site "https://www.chess.com"]

[Event "Titled Tuesday Blitz May 16 Late 2023"]
[White "Timmermans, Mark"]
[Black "Bruedigam, Martin"]
[WhiteFideId "1026399"]
[BlackFideId "24608033"]
[WhiteElo "2460"]
[BlackElo "2331"]
[Result "1-0"]
[Round "06"]
[TimeControl "180+2"]
[Date "2023.05.16"]
[WhiteClock "0:00:48"]
[BlackClock "0:00:09"]

1. Nf3 {[%clk 0:03:00]}  d5 {[%clk 0:02:59]} 2. c4 {[%clk 0:02:56]}  e6 {[%clk 0:03:00]} 3. e3 {[%clk 0:02:55]}  Nf6 {[%clk 0:03:00]} 4. b3 {[%clk 0:02:55]}  Be7 {[%clk 0:03:01]} 5. Bb2 {[%clk 0:02:55]}  Nbd7 {[%clk 0:03:00]} 6. Be2 {[%clk 0:02:55]}  O-O {[%clk 0:02:59]} 7. cxd5 {[%clk 0:02:55]}  exd5 {[%clk 0:02:58]} 8. O-O {[%clk 0:02:56]}  c6 {[%clk 0:02:59]} 9. Nc3 {[%clk 0:02:54]}  Re8 {[%clk 0:02:59]} 10. a3 {[%clk 0:02:45]}  a5 {[%clk 0:02:58]} 11. d4 {[%clk 0:02:36]}  Nf8 {[%clk 0:02:55]} 12. Ne5 {[%clk 0:02:36]}  Bf5 {[%clk 0:02:53]} 13. Bd3 {[%clk 0:02:35]}  Bxd3 {[%clk 0:02:52]} 14. Nxd3 {[%clk 0:02:36]}  Bd6 {[%clk 0:02:51]} 15. b4 {[%clk 0:02:35]}  Ng6 {[%clk 0:02:30]} 16. h3 {[%clk 0:02:26]}  Bc7 {[%clk 0:02:14]} 17. Re1 {[%clk 0:02:24]}  Qd6 {[%clk 0:02:11]} 18. f4 {[%clk 0:02:24]}  Ne4 {[%clk 0:02:04]} 19. Nxe4 {[%clk 0:02:13]}  dxe4 {[%clk 0:02:04]} 20. Ne5 {[%clk 0:02:12]}  axb4 {[%clk 0:01:58]} 21. Qb3 {[%clk 0:02:11]}  Nxe5 {[%clk 0:01:57]} 22. fxe5 {[%clk 0:02:08]}  Qd5 {[%clk 0:01:53]} 23. Qxd5 {[%clk 0:02:06]}  cxd5 {[%clk 0:01:53]} 24. axb4 {[%clk 0:02:07]}  Rxa1 {[%clk 0:01:44]} 25. Rxa1 {[%clk 0:02:08]}  Bb6 {[%clk 0:01:43]} 26. b5 {[%clk 0:02:00]}  Rc8 {[%clk 0:01:37]} 27. Ba3 {[%clk 0:01:59]}  Ra8 {[%clk 0:01:33]} 28. Rc1 {[%clk 0:01:59]}  f6 {[%clk 0:01:30]} 29. Bc5 {[%clk 0:01:56]}  Rc8 {[%clk 0:01:17]} 30. e6 {[%clk 0:01:53]}  Ba5 {[%clk 0:01:01]} 31. Rf1 {[%clk 0:01:09]}  Bd2 {[%clk 0:00:52]} 32. Kf2 {[%clk 0:01:08]}  Re8 {[%clk 0:00:51]} 33. e7 {[%clk 0:01:05]}  Ba5 {[%clk 0:00:50]} 34. b6 {[%clk 0:01:05]}  Kf7 {[%clk 0:00:44]} 35. Ke2 {[%clk 0:01:00]}  Ra8 {[%clk 0:00:26]} 36. Ra1 {[%clk 0:00:59]}  Ra6 {[%clk 0:00:25]} 37. Kd1 {[%clk 0:00:55]}  Ke8 {[%clk 0:00:20]} 38. Kc2 {[%clk 0:00:53]}  Kd7 {[%clk 0:00:20]} 39. Kb3 {[%clk 0:00:53]}  Bxb6 {[%clk 0:00:13]} 40. Rxa6 {[%clk 0:00:52]}  Bxc5 {[%clk 0:00:13]} 41. e8=Q+ {[%clk 0:00:47]}  Kxe8 {[%clk 0:00:09]} 42. Ra8+ {[%clk 0:00:48]} 1-0


[Site "https://www.chess.com"]

[Event "Titled Tuesday Blitz May 16 Late 2023"]
[White "Haszon, David"]
[Black "Bryakin, Mikhail"]
[WhiteFideId "733610"]
[BlackFideId "4165314"]
[WhiteElo "2210"]
[BlackElo "2467"]
[Result "0-1"]
[Round "06"]
[TimeControl "180+2"]
[Date "2023.05.16"]
[WhiteClock "0:00:47"]
[BlackClock "0:01:45"]

1. d4 {[%clk 0:03:00]}  Nf6 {[%clk 0:02:55]} 2. Nf3 {[%clk 0:02:59]}  c5 {[%clk 0:02:52]} 3. Be3 {[%clk 0:02:57]}  cxd4 {[%clk 0:02:50]} 4. Qxd4 {[%clk 0:02:54]}  Nc6 {[%clk 0:02:50]} 5. Qa4 {[%clk 0:02:52]}  g6 {[%clk 0:02:49]} 6. Nd4 {[%clk 0:02:46]}  Bg7 {[%clk 0:02:49]} 7. Nxc6 {[%clk 0:02:46]}  bxc6 {[%clk 0:02:49]} 8. Nc3 {[%clk 0:02:36]}  O-O {[%clk 0:02:49]} 9. h4 {[%clk 0:02:30]}  d5 {[%clk 0:02:47]} 10. Qxc6 {[%clk 0:02:22]}  Bf5 {[%clk 0:02:47]} 11. O-O-O {[%clk 0:02:08]}  Rc8 {[%clk 0:02:46]} 12. Qb5 {[%clk 0:01:59]}  Be6 {[%clk 0:02:37]} 13. Bd4 {[%clk 0:01:34]}  Qc7 {[%clk 0:02:06]} 14. f3 {[%clk 0:01:27]}  Rfd8 {[%clk 0:02:06]} 15. e3 {[%clk 0:01:23]}  Rb8 {[%clk 0:02:05]} 16. Qa4 {[%clk 0:01:21]}  a5 {[%clk 0:02:01]} 17. g4 {[%clk 0:01:14]}  Rb4 {[%clk 0:01:56]} 18. Qa3 {[%clk 0:01:14]}  Rdb8 {[%clk 0:01:56]} 19. b3 {[%clk 0:01:05]}  Nxg4 {[%clk 0:01:50]} 20. Bxg7 {[%clk 0:00:51]}  Kxg7 {[%clk 0:01:47]} 21. Nxd5 {[%clk 0:00:50]}  Bxd5 {[%clk 0:01:47]} 22. Rxd5 {[%clk 0:00:51]}  Nxe3 {[%clk 0:01:46]} 23. Qxa5 {[%clk 0:00:47]}  Qxc2# {[%clk 0:01:45]} 0-1


[Site "https://www.chess.com"]

[Event "Titled Tuesday Blitz May 16 Late 2023"]
[White "Loiacono, Antonio"]
[Black "Harshavardhan G B"]
[WhiteFideId "895415"]
[BlackFideId "25059009"]
[WhiteElo "2257"]
[BlackElo "2323"]
[Result "1/2-1/2"]
[Round "06"]
[TimeControl "180+2"]
[Date "2023.05.16"]
[WhiteClock "0:00:24"]
[BlackClock "0:01:56"]

1. e4 {[%clk 0:03:00]}  e5 {[%clk 0:02:58]} 2. Nf3 {[%clk 0:02:59]}  Nc6 {[%clk 0:02:59]} 3. Nc3 {[%clk 0:03:00]}  Nf6 {[%clk 0:02:56]} 4. Bb5 {[%clk 0:03:00]}  Bd6 {[%clk 0:02:51]} 5. O-O {[%clk 0:02:59]}  a6 {[%clk 0:02:45]} 6. Bxc6 {[%clk 0:02:58]}  dxc6 {[%clk 0:02:46]} 7. h3 {[%clk 0:02:57]}  c5 {[%clk 0:02:46]} 8. d3 {[%clk 0:02:56]}  h6 {[%clk 0:02:45]} 9. a4 {[%clk 0:02:55]}  a5 {[%clk 0:02:43]} 10. Nd2 {[%clk 0:02:52]}  Nd7 {[%clk 0:02:43]} 11. Nc4 {[%clk 0:02:51]}  Qe7 {[%clk 0:02:36]} 12. Nd5 {[%clk 0:02:49]}  Qd8 {[%clk 0:02:35]} 13. f4 {[%clk 0:02:34]}  exf4 {[%clk 0:02:30]} 14. Nxd6+ {[%clk 0:02:33]}  cxd6 {[%clk 0:02:31]} 15. Bxf4 {[%clk 0:02:31]}  Ne5 {[%clk 0:02:32]} 16. Bxe5 {[%clk 0:02:20]}  dxe5 {[%clk 0:02:33]} 17. Qh5 {[%clk 0:02:20]}  O-O {[%clk 0:02:32]} 18. Qxe5 {[%clk 0:02:19]}  Ra6 {[%clk 0:02:31]} 19. Rf2 {[%clk 0:02:03]}  Re6 {[%clk 0:02:27]} 20. Qf4 {[%clk 0:01:56]}  Bd7 {[%clk 0:02:23]} 21. b3 {[%clk 0:01:53]}  Bc6 {[%clk 0:02:22]} 22. c4 {[%clk 0:01:48]}  Bxd5 {[%clk 0:02:22]} 23. cxd5 {[%clk 0:01:47]}  Rf6 {[%clk 0:02:23]} 24. Qe3 {[%clk 0:01:45]}  Rxf2 {[%clk 0:02:22]} 25. Qxf2 {[%clk 0:01:44]}  Qb6 {[%clk 0:02:23]} 26. Rb1 {[%clk 0:01:36]}  Qb4 {[%clk 0:02:23]} 27. Qc2 {[%clk 0:01:31]}  Qd4+ {[%clk 0:02:17]} 28. Kh1 {[%clk 0:01:30]}  f5 {[%clk 0:02:16]} 29. Qc4 {[%clk 0:01:23]}  Qe3 {[%clk 0:02:16]} 30. d6+ {[%clk 0:01:18]}  Kh7 {[%clk 0:02:15]} 31. Rf1 {[%clk 0:00:55]}  f4 {[%clk 0:02:12]} 32. d7 {[%clk 0:00:50]}  f3 {[%clk 0:02:05]} 33. Rxf3 {[%clk 0:00:33]}  Rxf3 {[%clk 0:01:57]} 34. gxf3 {[%clk 0:00:28]}  Qf2 {[%clk 0:01:57]} 35. e5 {[%clk 0:00:23]}  Qf1+ {[%clk 0:01:54]} 36. Kh2 {[%clk 0:00:23]}  Qf2+ {[%clk 0:01:55]} 37. Kh1 {[%clk 0:00:23]}  Qf1+ {[%clk 0:01:56]} 38. Kh2 {[%clk 0:00:24]}  Qf2+ {[%clk 0:01:56]} 39. Kh1 {[%clk 0:00:24]} 1/2-1/2


[Site "https://www.chess.com"]

[Event "Titled Tuesday Blitz May 16 Late 2023"]
[White "Vakhlamov, Igor L."]
[Black "Perske, Thore"]
[WhiteFideId "24126748"]
[BlackFideId "12902195"]
[WhiteElo "2407"]
[BlackElo "2336"]
[Result "1/2-1/2"]
[Round "06"]
[TimeControl "180+2"]
[Date "2023.05.16"]
[WhiteClock "0:00:15"]
[BlackClock "0:00:08"]

1. e4 {[%clk 0:02:59]}  e6 {[%clk 0:02:59]} 2. d4 {[%clk 0:03:00]}  d5 {[%clk 0:03:00]} 3. Nc3 {[%clk 0:03:00]}  Bb4 {[%clk 0:03:00]} 4. exd5 {[%clk 0:03:00]}  exd5 {[%clk 0:03:00]} 5. Bd3 {[%clk 0:03:01]}  Nc6 {[%clk 0:02:54]} 6. Nf3 {[%clk 0:03:02]}  Bg4 {[%clk 0:02:54]} 7. O-O {[%clk 0:03:02]}  Nge7 {[%clk 0:02:24]} 8. h3 {[%clk 0:02:55]}  Bh5 {[%clk 0:02:24]} 9. a3 {[%clk 0:02:50]}  Bd6 {[%clk 0:02:24]} 10. Re1 {[%clk 0:02:50]}  a6 {[%clk 0:02:15]} 11. Nxd5 {[%clk 0:02:48]}  O-O {[%clk 0:01:57]} 12. Nxe7+ {[%clk 0:02:43]}  Bxe7 {[%clk 0:01:57]} 13. c3 {[%clk 0:02:42]}  Bd6 {[%clk 0:01:54]} 14. Be4 {[%clk 0:02:39]}  Rb8 {[%clk 0:01:42]} 15. Bxh7+ {[%clk 0:02:19]}  Kxh7 {[%clk 0:01:41]} 16. Ng5+ {[%clk 0:02:18]}  Qxg5 {[%clk 0:01:40]} 17. Bxg5 {[%clk 0:02:19]}  Bxd1 {[%clk 0:01:40]} 18. Raxd1 {[%clk 0:02:20]}  Rfe8 {[%clk 0:01:34]} 19. Be3 {[%clk 0:02:20]}  Na5 {[%clk 0:01:32]} 20. Kf1 {[%clk 0:02:12]}  Nc4 {[%clk 0:01:29]} 21. Bc1 {[%clk 0:02:13]}  b5 {[%clk 0:01:23]} 22. Re2 {[%clk 0:02:11]}  Rxe2 {[%clk 0:01:22]} 23. Kxe2 {[%clk 0:02:12]}  Re8+ {[%clk 0:01:22]} 24. Kd3 {[%clk 0:02:13]}  Na5 {[%clk 0:01:07]} 25. g3 {[%clk 0:02:11]}  Kg6 {[%clk 0:01:07]} 26. Be3 {[%clk 0:02:04]}  Kf5 {[%clk 0:01:03]} 27. g4+ {[%clk 0:01:54]}  Ke6 {[%clk 0:01:02]} 28. h4 {[%clk 0:01:55]}  Kd5 {[%clk 0:01:02]} 29. h5 {[%clk 0:01:52]}  Nc4 {[%clk 0:01:02]} 30. Bc1 {[%clk 0:01:52]}  a5 {[%clk 0:00:54]} 31. Rh1 {[%clk 0:01:20]}  Rh8 {[%clk 0:00:31]} 32. g5 {[%clk 0:01:13]}  a4 {[%clk 0:00:20]} 33. h6 {[%clk 0:01:13]}  Bf8 {[%clk 0:00:16]} 34. Rh5 {[%clk 0:01:08]}  Ke6 {[%clk 0:00:12]} 35. Kc2 {[%clk 0:00:31]}  c6 {[%clk 0:00:12]} 36. Rh1 {[%clk 0:00:25]}  Kf5 {[%clk 0:00:11]} 37. f3 {[%clk 0:00:22]}  Kg6 {[%clk 0:00:10]} 38. Rg1 {[%clk 0:00:17]}  Nd6 {[%clk 0:00:06]} 39. b3 {[%clk 0:00:16]}  axb3+ {[%clk 0:00:06]} 40. Kxb3 {[%clk 0:00:17]}  Nc4 {[%clk 0:00:06]} 41. a4 {[%clk 0:00:17]}  Bd6 {[%clk 0:00:05]} 42. axb5 {[%clk 0:00:18]}  cxb5 {[%clk 0:00:06]} 43. Rh1 {[%clk 0:00:16]}  f6 {[%clk 0:00:05]} 44. hxg7 {[%clk 0:00:15]}  Kxg7 {[%clk 0:00:05]} 45. gxf6+ {[%clk 0:00:15]}  Kg8 {[%clk 0:00:04]} 46. Rxh8+ {[%clk 0:00:14]}  Kxh8 {[%clk 0:00:05]} 47. Bh6 {[%clk 0:00:14]}  Kg8 {[%clk 0:00:05]} 48. Kc2 {[%clk 0:00:13]}  Kf7 {[%clk 0:00:05]} 49. Bg7 {[%clk 0:00:14]}  Nb6 {[%clk 0:00:03]} 50. Kd3 {[%clk 0:00:14]}  Nc4 {[%clk 0:00:03]} 51. Ke4 {[%clk 0:00:14]}  Nb6 {[%clk 0:00:04]} 52. f4 {[%clk 0:00:13]}  Ba3 {[%clk 0:00:04]} 53. f5 {[%clk 0:00:14]}  Bb2 {[%clk 0:00:05]} 54. Kd3 {[%clk 0:00:14]}  Ba3 {[%clk 0:00:05]} 55. Ke4 {[%clk 0:00:14]}  Bd6 {[%clk 0:00:05]} 56. Kd3 {[%clk 0:00:14]}  Bc7 {[%clk 0:00:05]} 57. Ke4 {[%clk 0:00:15]}  Bd8 {[%clk 0:00:06]} 58. Ke5 {[%clk 0:00:12]}  Bc7+ {[%clk 0:00:04]} 59. Ke4 {[%clk 0:00:12]}  Bd6 {[%clk 0:00:05]} 60. Kd3 {[%clk 0:00:12]}  Nd5 {[%clk 0:00:05]} 61. c4 {[%clk 0:00:12]}  bxc4+ {[%clk 0:00:05]} 62. Kxc4 {[%clk 0:00:12]}  Nf4 {[%clk 0:00:06]} 63. Kb5 {[%clk 0:00:12]}  Nh5 {[%clk 0:00:07]} 64. Kc6 {[%clk 0:00:12]}  Bf4 {[%clk 0:00:07]} 65. d5 {[%clk 0:00:12]}  Ng3 {[%clk 0:00:06]} 66. d6 {[%clk 0:00:12]}  Bxd6 {[%clk 0:00:07]} 67. Kxd6 {[%clk 0:00:13]}  Nxf5+ {[%clk 0:00:07]} 68. Ke5 {[%clk 0:00:14]}  Nxg7 {[%clk 0:00:07]} 69. fxg7 {[%clk 0:00:15]}  Kxg7 {[%clk 0:00:08]} 1/2-1/2


[Site "https://www.chess.com"]

[Event "Titled Tuesday Blitz May 16 Late 2023"]
[White "Guz, Ari"]
[Black "Manelyuk, Daniil"]
[WhiteFideId "2825759"]
[BlackFideId "44173920"]
[WhiteElo "2205"]
[BlackElo "2259"]
[Result "1-0"]
[Round "06"]
[TimeControl "180+2"]
[Date "2023.05.16"]
[WhiteClock "0:00:02"]
[BlackClock "0:00:00"]

1. a3 {[%clk 0:02:51]}  Nf6 {[%clk 0:02:59]} 2. b4 {[%clk 0:02:49]}  a5 {[%clk 0:02:57]} 3. b5 {[%clk 0:02:49]}  e6 {[%clk 0:02:56]} 4. Bb2 {[%clk 0:02:49]}  Be7 {[%clk 0:02:57]} 5. Nf3 {[%clk 0:02:48]}  O-O {[%clk 0:02:57]} 6. g4 {[%clk 0:02:47]}  d5 {[%clk 0:02:56]} 7. g5 {[%clk 0:02:45]}  Ne8 {[%clk 0:02:56]} 8. h4 {[%clk 0:02:45]}  c5 {[%clk 0:02:56]} 9. d3 {[%clk 0:02:44]}  Nd7 {[%clk 0:02:53]} 10. Nbd2 {[%clk 0:02:41]}  a4 {[%clk 0:02:51]} 11. e4 {[%clk 0:02:40]}  Qa5 {[%clk 0:02:48]} 12. exd5 {[%clk 0:02:34]}  exd5 {[%clk 0:02:49]} 13. c4 {[%clk 0:02:32]}  d4 {[%clk 0:02:47]} 14. Bg2 {[%clk 0:02:30]}  Nd6 {[%clk 0:02:46]} 15. O-O {[%clk 0:02:28]}  Nf5 {[%clk 0:02:46]} 16. Ne4 {[%clk 0:02:27]}  Re8 {[%clk 0:02:30]} 17. Re1 {[%clk 0:02:09]}  Qd8 {[%clk 0:02:17]} 18. Bc1 {[%clk 0:02:00]}  Nf8 {[%clk 0:02:17]} 19. h5 {[%clk 0:01:57]}  Ne6 {[%clk 0:02:16]} 20. g6 {[%clk 0:01:49]}  hxg6 {[%clk 0:02:14]} 21. hxg6 {[%clk 0:01:49]}  fxg6 {[%clk 0:02:14]} 22. Ne5 {[%clk 0:01:44]}  Nh4 {[%clk 0:02:10]} 23. Bh1 {[%clk 0:01:37]}  Rb8 {[%clk 0:01:51]} 24. Ng3 {[%clk 0:01:31]}  Bf6 {[%clk 0:01:39]} 25. Bd5 {[%clk 0:01:29]}  Kh7 {[%clk 0:01:39]} 26. Nxg6 {[%clk 0:01:18]}  Nxg6 {[%clk 0:01:13]} 27. Qh5+ {[%clk 0:01:16]}  Kg8 {[%clk 0:01:14]} 28. Qxg6 {[%clk 0:01:16]}  Kf8 {[%clk 0:01:14]} 29. Nh5 {[%clk 0:00:57]}  Qe7 {[%clk 0:00:49]} 30. Bh6 {[%clk 0:00:33]}  Qf7 {[%clk 0:00:37]} 31. Qxf7+ {[%clk 0:00:08]}  Kxf7 {[%clk 0:00:38]} 32. Nxf6 {[%clk 0:00:09]}  Kxf6 {[%clk 0:00:29]} 33. Bf4 {[%clk 0:00:09]}  Ra8 {[%clk 0:00:17]} 34. Be5+ {[%clk 0:00:09]}  Kg5 {[%clk 0:00:13]} 35. f4+ {[%clk 0:00:09]}  Kg6 {[%clk 0:00:08]} 36. Kf2 {[%clk 0:00:09]}  Bd7 {[%clk 0:00:08]} 37. Rg1+ {[%clk 0:00:09]}  Kh7 {[%clk 0:00:07]} 38. f5 {[%clk 0:00:09]}  Ng5 {[%clk 0:00:06]} 39. Bf4 {[%clk 0:00:06]}  Nh3+ {[%clk 0:00:05]} 40. Kf3 {[%clk 0:00:06]}  Bxf5 {[%clk 0:00:05]} 41. Rh1 {[%clk 0:00:06]}  g5 {[%clk 0:00:04]} 42. Bxg5 {[%clk 0:00:06]}  Kg6 {[%clk 0:00:05]} 43. Bf4 {[%clk 0:00:07]}  Kh5 {[%clk 0:00:05]} 44. Rag1 {[%clk 0:00:07]}  Kh4 {[%clk 0:00:04]} 45. Bg5+ {[%clk 0:00:05]}  Kh5 {[%clk 0:00:04]} 46. Bd2 {[%clk 0:00:05]}  Rf8 {[%clk 0:00:02]} 47. Rg5+ {[%clk 0:00:05]}  Kh4 {[%clk 0:00:02]} 48. Rg3 {[%clk 0:00:02]}  Bxd3+ {[%clk 0:00:00]} 49. Kg2 {[%clk 0:00:02]} 1-0


[Site "https://www.chess.com"]

[Event "Titled Tuesday Blitz May 16 Late 2023"]
[White "Schekachikhin, Maksim"]
[Black "Kokoszczynski, Jan"]
[WhiteFideId "24177830"]
[BlackFideId "1174460"]
[WhiteElo "2272"]
[BlackElo "2139"]
[Result "0-1"]
[Round "06"]
[TimeControl "180+2"]
[Date "2023.05.16"]
[WhiteClock "0:01:13"]
[BlackClock "0:00:12"]

1. d4 {[%clk 0:03:00]}  d5 {[%clk 0:02:59]} 2. c4 {[%clk 0:03:01]}  e6 {[%clk 0:02:58]} 3. Nc3 {[%clk 0:03:00]}  a6 {[%clk 0:02:58]} 4. cxd5 {[%clk 0:02:58]}  exd5 {[%clk 0:02:59]} 5. Nf3 {[%clk 0:02:57]}  c6 {[%clk 0:02:58]} 6. Bf4 {[%clk 0:02:56]}  Bd6 {[%clk 0:02:58]} 7. Bxd6 {[%clk 0:02:52]}  Qxd6 {[%clk 0:02:59]} 8. e3 {[%clk 0:02:53]}  Nf6 {[%clk 0:02:58]} 9. Bd3 {[%clk 0:02:53]}  O-O {[%clk 0:02:57]} 10. O-O {[%clk 0:02:52]}  Bg4 {[%clk 0:02:44]} 11. h3 {[%clk 0:02:48]}  Bh5 {[%clk 0:02:37]} 12. Qc2 {[%clk 0:02:42]}  Bg6 {[%clk 0:02:35]} 13. Bxg6 {[%clk 0:02:41]}  hxg6 {[%clk 0:02:35]} 14. Rab1 {[%clk 0:02:37]}  Nbd7 {[%clk 0:02:34]} 15. b4 {[%clk 0:02:31]}  b5 {[%clk 0:02:06]} 16. a4 {[%clk 0:02:20]}  Nb6 {[%clk 0:02:01]} 17. a5 {[%clk 0:02:18]}  Nc4 {[%clk 0:01:55]} 18. e4 {[%clk 0:02:18]}  dxe4 {[%clk 0:01:54]} 19. Nxe4 {[%clk 0:02:18]}  Nxe4 {[%clk 0:01:54]} 20. Qxe4 {[%clk 0:02:19]}  Rfe8 {[%clk 0:01:53]} 21. Qd3 {[%clk 0:02:18]}  Qd5 {[%clk 0:01:47]} 22. Qc3 {[%clk 0:02:17]}  Re6 {[%clk 0:01:39]} 23. Nd2 {[%clk 0:02:16]}  Nxd2 {[%clk 0:01:04]} 24. Qxd2 {[%clk 0:02:17]}  Re4 {[%clk 0:01:03]} 25. Rfd1 {[%clk 0:02:08]}  Rd8 {[%clk 0:01:03]} 26. Qc3 {[%clk 0:02:05]}  Rd6 {[%clk 0:00:56]} 27. Rd2 {[%clk 0:01:58]}  Rxd4 {[%clk 0:00:47]} 28. Rxd4 {[%clk 0:01:58]}  Qxd4 {[%clk 0:00:48]} 29. Rc1 {[%clk 0:01:58]}  Qxc3 {[%clk 0:00:47]} 30. Rxc3 {[%clk 0:01:51]}  Kf8 {[%clk 0:00:47]} 31. Kf1 {[%clk 0:01:43]}  Ke7 {[%clk 0:00:47]} 32. Ke2 {[%clk 0:01:36]}  Kd7 {[%clk 0:00:44]} 33. Ke3 {[%clk 0:01:36]}  Rd5 {[%clk 0:00:37]} 34. h4 {[%clk 0:01:36]}  Kd6 {[%clk 0:00:36]} 35. g4 {[%clk 0:01:35]}  g5 {[%clk 0:00:29]} 36. hxg5 {[%clk 0:01:33]}  Rxg5 {[%clk 0:00:30]} 37. Kf4 {[%clk 0:01:33]}  Rd5 {[%clk 0:00:30]} 38. Ke4 {[%clk 0:01:32]}  g6 {[%clk 0:00:20]} 39. f4 {[%clk 0:01:30]}  f5+ {[%clk 0:00:19]} 40. gxf5 {[%clk 0:01:30]}  gxf5+ {[%clk 0:00:15]} 41. Ke3 {[%clk 0:01:30]}  c5 {[%clk 0:00:16]} 42. bxc5+ {[%clk 0:01:27]}  Rxc5 {[%clk 0:00:16]} 43. Rd3+ {[%clk 0:01:27]}  Kc6 {[%clk 0:00:15]} 44. Rd8 {[%clk 0:01:21]}  b4 {[%clk 0:00:14]} 45. Rb8 {[%clk 0:01:18]}  Rb5 {[%clk 0:00:14]} 46. Ra8 {[%clk 0:01:18]}  Kb7 {[%clk 0:00:12]} 47. Rf8 {[%clk 0:01:13]}  b3 {[%clk 0:00:12]} 0-1


[Site "https://www.chess.com"]